{"text_format":"1","workbook":"xlsx","n_sheets":2,"sheets":["Fiche","Données"],"not_rendered":{"charts":0,"images":1,"macros":1,"external_links":0,"defined_names":119,"comments":0,"pivot_tables":0},"unopened":[],"bounds":{"document_bytes":16777216,"sheet_cells":100000,"rows_first":2000,"rows_last":500,"rows_between":2000,"halvings":0,"cell_chars":16384,"cell_head_chars":4096},"cells_cut":0,"cells_raw":0,"read":"whole","date_system":"1900"}

{"sheet":"Fiche","index":0,"n_rows":152,"n_cols":22,"rows_kept":152,"cut":false,"hidden":false,"merged":[[68,2,68,3],[4,24,4,26],[43,2,43,3],[43,4,43,5],[43,6,43,7],[43,8,43,9],[43,10,43,11],[20,8,20,11],[22,8,22,11],[30,4,31,11],[35,8,35,9],[17,8,17,11],[28,8,28,10],[15,8,15,11],[1,1,1,12],[7,8,7,11],[11,8,11,11],[13,8,13,11],[4,2,4,10],[3,2,3,8],[88,4,88,11],[92,4,93,11],[38,4,38,11],[74,5,74,7],[76,5,76,7],[79,8,79,11],[79,4,79,5],[68,4,68,11],[83,4,83,5],[85,4,85,5],[81,8,81,11],[83,8,83,11],[81,4,81,5]]}
[]
[null,"Fiche entreprise"]
[]
[null,null,"Consignes : \nRemplir les champs grisés puis retourner le fichier complété au format Excel par courriel à l'adresse suivante : "]
[null,null,"serviceHA@lmhabitat.fr"]
[]
[]
[null,null,"N° de SIRET (14 caractères)",null,null,null,"Raison sociale"]
[]
[]
[null,null,"Tél",null,null,null,"Adresse"]
[null,null,null,null,null,null,"Rue"]
[]
[null,null,"Fax",null,null,null,"Complément d'adresse"]
[]
[null,null,"Courriel entreprise",null,null,null,"Code postal"]
[]
[null,null,null,null,null,null,"Ville"]
[]
[]
[null,null,"Nom du contact",null,null,null,"Fonction"]
[]
[null,null,"Tél",null,null,null,"Fax"]
[]
[null,null,"Courriel contact"]
[]
[]
[]
[null,null,"Spécialisation 1",null,null,null,"Spécialisation 2"]
[]
[null,null,"Qualifications"]
[null,null,"(A séparer par un \" ; \")"]
[]
[null,null,"Effectifs"]
[]
[null,null,"Chiffre d'affaires (K€)",null,null,null,"Année du CA"]
[]
[null,null,"Activités spécifiques de l'entreprise"]
[]
[]
[]
[]
[null,null,"Descriptif des spécialisations du fournisseur : cocher les cases vous concernant"]
[null,null,"MOE/AMO",null,"Honoraires",null,"Diagnostic",null,"Inspection, analyse, essai",null,"SI"]
[null,null,"Archi",null,"étude juridique",null,"technique",null,"SPS",null,"téléphonie"]
[]
[null,null,"BET Fluides",null,"huissier",null,"social",null,"CT",null,"informatique"]
[]
[null,null,"BET Structures",null,"notaire",null,"sécurité personnel",null,"OPC",null,"bureautique"]
[]
[null,null,"BET HQE",null,"exp immobiliere",null,"audit",null,"géometre",null,"photocopieurs"]
[]
[null,null,"BET constructions métalliques",null,"enquete",null,"sanitaire",null,"Exp assurance"]
[]
[null,null,"BET acoustique",null,"MO sociale",null,null,null,"étanchéité air "]
[]
[null,null,"BET etudes de sols, géotechnicien",null,"communication",null,null,null,"laboratoire"]
[]
[null,null,"BET désamiantage",null,"Insertion"]
[]
[null,null,"programmiste",null,"Repre justice"]
[]
[null,null,"Economiste",null,"avocat"]
[]
[null,null,null,null,"actes"]
[]
[null,null,null,null,"gardiennage"]
[]
[null,null,"Autres"]
[]
[]
[]
[]
[null,null,"Prestations ciblées pour lesquelles l'entreprise souhaite être candidate"]
[null,null,"Logements"]
[]
[null,null,"Résidences spécialisées (RPA, foyers…)"]
[]
[null,null,"Type",null,null,null,"Volume"]
[null,null,"Neuf collectif",null,null,null,"de 1 à 20 lgts"]
[]
[null,null,"Neuf individuel",null,null,null,"de 21 à 40 lgts"]
[]
[null,null,"Réhabilitation",null,null,null,"+ de 40 lgts"]
[]
[null,null,"Maintenance / entretien"]
[]
[null,null,"Secteur géographique d'intervention sur la Métropole"]
[null,null,"(A séparer par un \" ; \")"]
[]
[]
[]
[null,null,"Commentaires"]
[]
[]
[]
[]
[]
[]
[]
[]
[]
[]
[]
[]
[]
[]
[]
[]
[]
[]
[]
[]
[]
[]
[]
[]
[]
[]
[]
[]
[]
[]
[]
[]
[]
[]
[]
[]
[]
[]
[null,null,null,null,null,null,null,null,null,null,null,null,null,null,null,null,null,null,null,"corps d'état 1",null,"activité"]
[]
[null,null,null,null,null,null,null,null,null,null,null,null,null,null,null,null,null,null,null,"Appareils gaz",null,"X"]
[null,null,null,null,null,null,null,null,null,null,null,null,null,null,null,null,null,null,null,"Carrelage faience"]
[null,null,null,null,null,null,null,null,null,null,null,null,null,null,null,null,null,null,null,"Couverture Zinguerie"]
[null,null,null,null,null,null,null,null,null,null,null,null,null,null,null,null,null,null,null,"Curage Débouchage"]
[null,null,null,null,null,null,null,null,null,null,null,null,null,null,null,null,null,null,null,"Electricité Courants Faibles"]
[null,null,null,null,null,null,null,null,null,null,null,null,null,null,null,null,null,null,null,"Electricité Courants Forts"]
[null,null,null,null,null,null,null,null,null,null,null,null,null,null,null,null,null,null,null,"Enrobés VRD"]
[null,null,null,null,null,null,null,null,null,null,null,null,null,null,null,null,null,null,null,"Etanchéité"]
[null,null,null,null,null,null,null,null,null,null,null,null,null,null,null,null,null,null,null,"Maçonnerie"]
[null,null,null,null,null,null,null,null,null,null,null,null,null,null,null,null,null,null,null,"Nettoyage Débarrassage"]
[null,null,null,null,null,null,null,null,null,null,null,null,null,null,null,null,null,null,null,"Platrerie Peinture"]
[null,null,null,null,null,null,null,null,null,null,null,null,null,null,null,null,null,null,null,"Plomberie Sanitaire"]
[null,null,null,null,null,null,null,null,null,null,null,null,null,null,null,null,null,null,null,"Revêtements de sols"]
[null,null,null,null,null,null,null,null,null,null,null,null,null,null,null,null,null,null,null,"Robinetterie"]
[null,null,null,null,null,null,null,null,null,null,null,null,null,null,null,null,null,null,null,"Serrurerie Métallerie"]
[null,null,null,null,null,null,null,null,null,null,null,null,null,null,null,null,null,null,null,"Travaux Acrobatiques"]
[null,null,null,null,null,null,null,null,null,null,null,null,null,null,null,null,null,null,null,"Ventilation Fumisterie"]
[null,null,null,null,null,null,null,null,null,null,null,null,null,null,null,null,null,null,null,"Vitrerie"]
[null,null,null,null,null,null,null,null,null,null,null,null,null,null,null,null,null,null,null,"Volets Roulants"]

{"sheet":"Données","index":1,"n_rows":3,"n_cols":71,"rows_kept":3,"cut":false,"hidden":false,"merged":[[0,2,0,5],[0,0,0,1],[0,16,0,20],[0,31,0,42],[0,21,0,30],[0,14,0,15],[0,66,0,69],[0,62,0,65],[0,60,0,61],[0,6,0,8],[0,9,0,13],[0,48,0,51],[0,52,0,58],[0,43,0,47]]}
["Identité",null,"adresse",null,null,null,"coordonnées",null,null,"contact",null,null,null,null,"corps d'état",null,"qualifications",null,null,null,null,"MOE/AMO",null,null,null,null,null,null,null,null,null,"Honoraires",null,null,null,null,null,null,null,null,null,null,null,"Diagnostic",null,null,null,null,"SI",null,null,null,"Inspection, analyse, essai",null,null,null,null,null,null,"Autres/commentaires","Chantiers",null,"Type",null,null,null,"Volume",null,null,null,"Commentaires"]
["Siret","Raison sociale","Rue","Cpl adresse","CP","Ville","Tel Ent","Fax ent","Courriel ent","nom contact","fonction contact","tel contact","fax contact","courriel contact","ce1","ce2","qualifications","effectifs","CA année","CA valeur","Activité","archi","BET Fluides","BET Structures","BET HQE","BET constructions métalliques","BET acoustique","BET etudes de sols, géotechnicien","BET désamiantage","programmiste","Economiste","étude juridique","huissier","notaire","exp immobiliere","enquete","MO sociale","communication","Insertion","Repre justice","avocat","actes","gardiennage","technique","social","sécurité personnel","audit","sanitaire","téléphonie","informatique","bureautique","photocopieurs","SPS","CT","OPC","géometre","Exp assurance","étanchéité air ","laboratoire","Autres/commentaires","logements","résidences spécialisées","neuf col","neuf indiv","réhab","maintenance","1 à 20","21 à 40","+ de 40 lgts","Secteur géo"]
[{"$f":"siret","v":0},{"$f":"raisonsociale","v":0},{"$f":"ent_rue","v":0},{"$f":"ent_cpadresse","v":0},{"$f":"ent_cp","v":0},{"$f":"ent_ville","v":0},{"$f":"ent_tel","v":0},{"$f":"ent_fax","v":0},{"$f":"ent_courriel","v":0},{"$f":"contact","v":0},{"$f":"contact_fonction","v":0},{"$f":"contact_tel","v":0},{"$f":"contact_fax","v":0},{"$f":"contact_courriel","v":0},{"$f":"corpsetat1","v":0},{"$f":"corpsetat2","v":0},{"$f":"qualifications","v":0},{"$f":"effectif","v":0},{"$f":"CA_annee","v":0},{"$f":"CA_val","v":0},{"$f":"activités","v":0},{"$f":"s_moe_archi","v":0},{"$f":"s_moe_betfluides","v":0},{"$f":"s_moe_betstructures","v":0},{"$f":"s_moe_betHQE","v":0},{"$f":"s_moe_BETconstructionsmetalliques","v":0},{"$f":"s_moe_betacoustique","v":0},{"$f":"s_moe_betetudessols","v":0},{"$f":"s_moe_betdesamiantage","v":0},{"$f":"s_moe_programmiste","v":0},{"$f":"s_moe_economiste","v":0},{"$f":"s_hono_etudejuri","v":0},{"$f":"s_hono_huissier","v":0},{"$f":"s_hono_notaire","v":0},{"$f":"s_hono_expimmo","v":0},{"$f":"s_hono_enquete","v":0},{"$f":"s_hono_mosociale","v":0},{"$f":"s_hono_comm","v":0},{"$f":"s_hono_insertion","v":0},{"$f":"s_hono_reprejustice","v":0},{"$f":"s_hono_avocat","v":0},{"$f":"s_hono_actes","v":0},{"$f":"s_hono_gardiennage","v":0},{"$f":"s_diag_technique","v":0},{"$f":"s_diag_social","v":0},{"$f":"s_diag_secuperso","v":0},{"$f":"s_diag_audit","v":0},{"$f":"s_diag_sanitaire","v":0},{"$f":"s_si_téléphonie","v":0},{"$f":"s_si_informatique","v":0},{"$f":"s_si_bureautique","v":0},{"$f":"s_si_photocopieurs","v":0},{"$f":"s_iae_sps","v":0},{"$f":"s_iae_CT","v":0},{"$f":"s_iae_opc","v":0},{"$f":"s_iae_géometre","v":0},{"$f":"s_iae_expassurance","v":0},{"$f":"s_iae_etancheiteair","v":0},{"$f":"s_iae_laboratoire","v":0},{"$f":"s_autres","v":0},{"$f":"chantiers_lgts","v":0},{"$f":"chantiers_resspe","v":0},{"$f":"type_neufcol","v":0},{"$f":"type_neufind","v":0},{"$f":"type_réha","v":0},{"$f":"type_maintenance","v":0},{"$f":"volume1","v":0},{"$f":"volume2","v":0},{"$f":"volume3","v":0},{"$f":"secteur","v":0},{"$f":"Fiche!E93","v":0}]